bitfinex/quotes_ETHUSD_20240729
["timestamp","ask_amount","ask_price","bid_price","bid_amount"]
[1722213316579,2.42035,3305.3,3304.2,2.42115]
[1722213316940,2.56559,3305.5,3304.3,2.48159827]
[1722213317144,2.676849,3305.4,3304.6,2.42086]
[1722213317650,0.256559,3305.4,3304.7,2.42074]
[1722213317865,0.256559,3305.4,3304.4,26.93]
[1722213318042,2.42048,3305.2,3304.4,26.93]
[1722213318248,2.42042,3305.3,3304.4,26.93]
[1722213318447,2.42042,3305.3,3304.5,2.42093]
[1722213318980,2.56559,3305.5,3304.6,2.42083]
[1722213319171,2.97028,3305.4,3304.6,2.42083]
[1722213319370,2.42044,3305.2,3304.4,29.35097]
[1722213319581,2.4205,3305.1,3304.4,26.93]
[1722213319886,2.731914,3305.3,3304.4,29.35095]
[1722213320100,0.55,3305.2,3304.4,26.93]
[1722213320382,0.14536,3305.5,3304.7,2.42073]
[1722213320559,0.55,3305.4,3304.7,2.42073]
[1722213321098,0.55,3305.4,3304.8,2.42072]
[1722213321446,0.55,3305.4,3304.6,24.37616]
[1722213321646,1.161554,3305.4,3304.6,24.37616]
[1722213322088,3.581834,3305.4,3304.6,22.07086]
[1722213322381,2.42035,3305.3,3304.6,19.65]
[1722213323560,2.97043,3305.2,3304.6,19.65]
[1722213323760,0.297043,3305.1,3304.6,19.65]
[1722213324204,0.55,3305.2,3304.6,19.65]
[1722213324522,0.611554,3305.4,3304.6,19.65]
[1722213324725,0.14536,3305.5,3304.9,2.42064]
[1722213325025,0.14536,3305.5,3304.7,2.42078]
[1722213325243,0.55,3305.4,3304.7,2.42078]
[1722213325707,0.55,3305.4,3304.8,2.42071]
[1722213326488,0.55,3305.4,3304.8,4.89811]
[1722213327014,0.55,3305.4,3304.8,24.54811]
[1722213327521,0.55,3305.4,3304.9,2.42061]
[1722213327943,0.14536,3305.5,3305.2,2.42037]
[1722213328821,0.14536,3305.5,3305.3,2.42031]
[1722213329022,0.14536,3305.5,3305.3,22.07031]
[1722213329501,0.14536,3305.5,3305.3,19.65]
[1722213330015,0.14536,3305.5,3305.3,22.07035]
[1722213330216,0.14536,3305.5,3305.4,4.627315]
[1722213330399,0.14536,3305.5,3305.4,7.047595]
[1722213331786,0.14536,3305.5,3305.4,7.12470359]
[1722213332403,0.14536,3305.5,3305.4,29.15970359]
[1722213333826,0.14536,3305.5,3305.4,31.57998359]
[1722213333996,0.14536,3305.5,3305.4,31.9913047]
[1722213335812,0.14536,3305.5,3305.4,29.15970359]
[1722213339532,0.14536,3305.5,3305.4,31.57998359]
[1722213340549,0.14536,3305.5,3305.4,34.9913047]
[1722213341652,0.14536,3305.5,3305.4,32.15970359]
[1722213342711,0.14536,3305.5,3305.4,24.35442359]
[1722213342944,0.14536,3305.5,3305.4,26.77470359]
[1722213343469,0.14536,3305.5,3305.4,21.93414359]
[1722213343612,0.14536,3305.5,3305.4,19.72710859]
[1722213344010,0.14536,3305.5,3305.4,22.14738859]
[1722213345884,0.14536,3305.5,3305.4,19.72710859]
[1722213346943,0.14536,3305.5,3305.4,22.14738859]
[1722213347146,0.14536,3305.5,3305.4,24.60416445]
[1722213347386,0.14536,3305.5,3305.4,22.18388445]
[1722213348685,0.14536,3305.5,3305.4,24.60416445]
[1722213350197,0.14536,3305.5,3305.4,22.18388445]
[1722213350564,0.14536,3305.5,3305.4,19.72710859]
[1722213353265,0.14536,3305.5,3305.4,22.14738859]
[1722213355208,0.14536,3305.5,3305.4,19.72710859]
[1722213358586,2.56556,3305.5,3305.4,19.72710859]
[1722213359613,7.96406,3305.5,3305.4,19.72710859]
[1722213359812,8.760466,3305.5,3305.4,19.72710859]
[1722213360588,3.12366,3305.5,3305.4,19.72710859]
[1722213360791,5.54386,3305.5,3305.4,19.72710859]
[1722213360987,3.12366,3305.5,3305.4,19.72710859]
[1722213361201,2.57366,3305.5,3305.4,19.72710859]
[1722213361609,0.14536,3305.5,3305.4,19.72710859]
[1722213363109,2.56556,3305.5,3305.4,19.72710859]
[1722213363837,7.34016,3305.5,3305.4,19.72710859]
[1722213364054,8.924176,3305.5,3305.4,19.72710859]
[1722213365703,6.503976,3305.5,3305.4,19.72710859]
[1722213366054,5.46996,3305.5,3305.4,19.72710859]
[1722213366462,4.91996,3305.5,3305.4,19.72710859]
[1722213367325,2.56556,3305.5,3305.4,19.72710859]
[1722213368037,0.14536,3305.5,3305.4,19.72710859]
[1722213368409,2.56556,3305.5,3305.4,19.72710859]
[1722213368608,0.14536,3305.5,3305.4,19.72710859]
[1722213370345,2.56556,3305.5,3305.4,19.72710859]
[1722213370845,0.14536,3305.5,3305.4,19.72710859]
[1722213371506,2.56556,3305.5,3305.4,19.72710859]
[1722213376558,4.98576,3305.5,3305.4,19.72710859]
[1722213378680,6.55635568,3305.5,3305.4,19.72710859]
[1722213380341,6.55635568,3305.5,3305.4,0.07710859]
[1722213380586,6.55635568,3305.5,3304.9,19.65]
[1722213380587,2.42052,3305.1,3304.9,19.65]
[1722213382503,2.42043,3305.2,3304.9,19.65]
[1722213382834,2.42051,3305.1,3304.9,19.65]
[1722213382980,2.42041,3305.3,3304.9,19.65]
[1722213383184,2.42057,3305.0,3304.9,19.65]
[1722213383384,4.84114,3305.0,3304.9,19.65]
[1722213383625,5.39114,3305.0,3304.9,19.65]
[1722213383828,9.35407,3305.0,3304.9,19.65]
[1722213384298,2.42094,3304.5,3304.4,19.65]
[1722213384458,4.84232,3304.2,3304.1,19.65]
[1722213384607,5.39232,3304.2,3304.1,19.65]
[1722213384811,8.39232,3304.2,3304.1,19.65]
[1722213385007,14.41250435,3304.2,3304.1,19.65]
[1722213385215,16.6332978,3304.2,3304.1,19.65]
[1722213385417,2.4216,3303.6,3303.5,19.65]
[1722213385651,4.8432,3303.6,3303.5,19.65]
[1722213385859,5.3932,3303.6,3303.5,19.65]
[1722213386211,2.42198,3303.1,3302.9,19.65]
[1722213386577,2.42204,3303.0,3302.9,19.65]
[1722213386744,4.84408,3303.0,3302.9,19.65]
[1722213387112,5.39408,3303.0,3302.9,19.65]
[1722213387455,2.97204,3303.0,3302.9,19.65]
[1722213387955,2.97204,3303.0,3302.9,19.72791728]
[1722213388724,0.55,3303.0,3302.9,19.72791728]
[1722213388930,2.96095,3303.6,3302.9,19.72791728]
[1722213388931,2.3532,3303.9,3302.9,21.0563304]
[1722213389129,2.4215,3303.8,3303.0,2.42203]
[1722213389353,2.3532,3304.3,3303.1,22.0719]
[1722213389574,2.42127,3304.1,3303.2,21.86497518]
[1722213389757,2.42114,3304.3,3303.3,2.4218]
[1722213389960,2.42114,3304.3,3303.5,2.42162]
[1722213390133,2.42114,3304.3,3303.3,2.49945544]
[1722213390134,2.42121,3304.2,3303.4,0.07758999]
[1722213390465,2.42121,3304.2,3303.6,0.0774591]
[1722213390628,2.42121,3304.2,3303.5,0.32746354]
[1722213390828,2.3532,3304.7,3303.5,0.07752454]
[1722213391030,2.42144,3303.9,3303.2,19.65]
[1722213391252,2.42148,3303.8,3303.3,0.07765544]
[1722213391574,2.42148,3303.8,3303.2,19.65]
[1722213391744,2.42148,3303.8,3303.4,0.07791072]
[1722213391947,2.42148,3303.8,3303.2,19.65]
[1722213392144,2.42148,3303.8,3303.5,0.07784527]
[1722213392497,2.42148,3303.8,3303.6,0.07777983]
[1722213392769,2.42153,3303.7,3303.2,19.65]
[1722213393370,2.42138,3303.9,3303.2,19.65]
[1722213393531,2.97146,3303.8,3303.2,20.35663912]
[1722213393872,0.55,3303.8,3303.2,20.35663912]
[1722213394283,2.42109,3304.3,3303.4,2.42174]
[1722213394443,2.42128,3304.1,3303.2,22.77850912]
[1722213394764,2.42142,3303.9,3303.2,22.77851912]
[1722213394972,2.42142,3303.9,3303.3,3.04901288]
[1722213395469,2.42128,3304.1,3303.4,19.65]
[1722213395682,5.42093,3304.6,3303.7,2.42151]
[1722213395888,5.42093,3304.6,3303.5,2.42165]
[1722213395889,2.3532,3304.7,3303.5,4.68985]
[1722213396074,2.42065,3304.9,3303.6,22.083985]
[1722213396272,5.09474266,3305.5,3303.6,22.083985]
[1722213396273,2.42048,3305.2,3303.6,24.69151645]
[1722213396445,2.77469676,3305.5,3303.6,24.69151645]
[1722213396446,2.42077,3304.8,3303.9,2.42135]
[1722213396642,2.42079,3304.7,3303.8,2.42144]
[1722213396885,2.42066,3304.9,3303.9,4.628514]
[1722213397059,2.42057,3305.0,3303.9,4.628514]
[1722213397261,2.42057,3305.0,3304.2,2.42116]
[1722213397582,2.42057,3305.0,3303.9,4.628514]
[1722213397748,2.42045,3305.2,3304.2,2.4211]
[1722213397948,2.42045,3305.2,3304.4,2.42094]
[1722213397949,0.242045,3305.2,3304.4,2.42094]
[1722213398156,0.242045,3305.2,3304.5,19.65]
[1722213399088,0.46179676,3305.5,3304.7,2.42078]
[1722213399388,0.14536,3305.5,3304.8,2.42069]
[1722213399948,0.14536,3305.5,3304.9,2.42064]
[1722213400245,0.14536,3305.5,3305.0,2.42055]
[1722213400655,0.14536,3305.5,3304.8,2.42067]
[1722213400898,0.14536,3305.5,3304.8,4.627747]
[1722213401196,0.14536,3305.5,3304.8,2.207077]
[1722213402260,0.14536,3305.5,3305.1,2.42049]
[1722213402464,0.14536,3305.5,3305.2,19.65]
[1722213402864,0.14536,3305.5,3305.3,0.0764187]
[1722213403066,0.14536,3305.5,3305.2,19.65]
[1722213403272,0.14536,3305.5,3305.3,0.07608637]
[1722213403585,0.14536,3305.5,3305.2,19.65]
[1722213403883,0.14536,3305.5,3305.3,0.07608637]
[1722213404264,0.14536,3305.5,3305.2,19.65]
[1722213404265,0.943923,3305.5,3305.2,19.65]
[1722213404461,2.42035,3305.3,3305.2,19.65]
[1722213404662,2.97028,3305.4,3305.2,19.65]
[1722213404860,2.42035,3305.3,3305.2,19.65]
[1722213405798,8.3907,3305.3,3305.2,19.65]
[1722213405960,6.6211863,3305.3,3305.2,19.65]
[1722213406308,9.6211863,3305.3,3305.2,19.65]
[1722213407289,2.42064,3304.9,3304.8,19.65]
[1722213407774,2.97064,3304.9,3304.8,19.65]
[1722213410785,5.39128,3304.9,3304.8,19.65]
[1722213412780,4.84188,3304.5,3304.4,19.65]
[1722213412966,4.84188,3304.5,3304.0,7.28]
[1722213412967,2.42116,3304.2,3304.1,19.65]
[1722213414071,2.97075,3304.8,3304.1,19.65]
[1722213414072,2.42088,3304.6,3304.1,19.65]
[1722213414286,0.55,3304.5,3304.1,19.65]
[1722213414826,2.97094,3304.5,3304.1,19.65]
[1722213415316,2.42116,3304.2,3304.1,19.65]
[1722213415485,5.39232,3304.2,3304.1,19.65]
[1722213416100,5.39232,3304.2,3303.4,2.3872]
[1722213416101,2.4213,3304.0,3303.9,19.65]
[1722213416328,2.9713,3304.0,3303.9,19.65]
[1722213417814,2.42102,3304.4,3303.9,19.65]
[1722213418154,2.42121,3304.2,3303.9,19.72734391]
[1722213418646,2.4213,3304.0,3303.9,19.72734391]
[1722213419251,2.9713,3304.0,3303.9,19.72734391]
[1722213419564,5.98973,3304.0,3303.9,19.72734391]
[1722213421225,3.0,3304.4,3303.9,19.72734391]
[1722213421553,2.42059,3305.0,3304.2,2.42109]
[1722213421704,2.42059,3305.0,3304.3,0.242109]
[1722213421705,2.42066,3304.9,3304.3,0.242109]
[1722213421923,2.42066,3304.9,3304.3,0.07712281]
[1722213422123,2.42066,3304.9,3304.4,19.65]
[1722213422573,2.42054,3305.1,3304.5,0.076992]
[1722213423075,2.42035,3305.3,3304.5,0.076992]
[1722213423220,2.42058,3305.0,3304.6,19.65]
[1722213423754,2.42058,3305.0,3304.7,0.0768032]
[1722213423923,2.42076,3304.8,3304.7,0.0768032]
[1722213424126,2.42058,3305.0,3304.7,0.0768032]
[1722213425692,3.0,3305.1,3304.7,0.0768032]
[1722213425827,2.42072,3304.8,3304.7,0.0768032]
[1722213426682,5.87557,3304.8,3304.7,0.0768032]
[1722213426986,8.39144,3304.8,3304.7,0.0768032]
[1722213427765,10.81216,3304.8,3304.7,0.0768032]
[1722213427991,10.81216,3304.8,3304.7,19.7268032]
[1722213427992,8.39144,3304.8,3304.7,19.7268032]
[1722213428275,5.97072,3304.8,3304.7,19.7268032]
[1722213428423,9.460784,3304.8,3304.7,19.7268032]
[1722213430284,11.881504,3304.8,3304.7,19.7268032]
[1722213430770,11.881504,3304.8,3304.7,12.2108632]
[1722213430771,16.123224,3304.8,3304.7,12.2108632]
[1722213430978,18.394524,3304.8,3304.7,0.07431073]
[1722213431343,18.394524,3304.8,3303.2,7.28]
[1722213431344,2.42141,3303.9,3303.2,7.28]
[1722213431568,0.55,3303.8,3303.2,0.970202]
[1722213431731,2.42157,3303.7,3303.3,0.07522667]
[1722213432172,2.42164,3303.6,3302.8,3.73976263]
[1722213432547,2.42164,3303.6,3303.4,0.07520567]
[1722213432749,2.42164,3303.6,3302.8,3.73976263]
[1722213432946,2.42164,3303.6,3303.5,0.07514022]
[1722213433204,2.97164,3303.6,3302.8,3.73976263]
[1722213433488,2.97164,3303.6,3302.8,6.16194263]
[1722213433489,0.55,3303.6,3302.8,6.16194263]
[1722213433784,0.55,3303.7,3302.9,0.07573782]
[1722213433990,2.42133,3304.0,3302.9,0.94340586]
[1722213434137,3.0,3304.1,3303.3,2.42177]
[1722213434528,2.42118,3304.2,3303.4,0.07543953]
[1722213435145,2.42123,3304.1,3303.4,0.07543953]
[1722213435350,2.42132,3304.0,3303.4,0.07543953]
[1722213435760,2.42132,3304.0,3303.1,2.42196]
[1722213435967,2.42132,3304.0,3303.5,0.07535475]
[1722213436157,2.42132,3304.0,3303.1,2.42196]
[1722213436472,2.42132,3304.0,3303.2,0.242196]
[1722213436635,2.42132,3304.0,3303.3,0.07548564]
[1722213437555,0.55,3303.9,3303.0,11.01976263]
[1722213437785,0.55,3303.9,3303.4,0.07542019]
[1722213437997,0.847132,3303.9,3303.0,11.01976263]
[1722213438195,2.9532,3303.9,3303.5,0.07535475]
[1722213438359,2.22001416,3303.8,3302.5,2.4116]
[1722213438688,8.5002,3303.9,3302.1,4.78709]
[1722213438689,2.42216,3302.9,3302.1,4.78709]
[1722213439005,2.42192,3303.2,3302.1,4.78709]
[1722213439156,2.97196,3303.1,3302.2,0.07620586]
[1722213439355,2.42219,3302.8,3302.2,0.07620586]
[1722213439552,2.42211,3302.9,3302.2,0.07620586]
[1722213439756,2.97199,3303.1,3302.2,0.07620586]
[1722213440001,2.97199,3303.1,3302.2,0.32026645]
[1722213440002,2.42199,3303.1,3302.2,0.32026645]
[1722213440167,0.55,3303.0,3302.2,2.74284645]
[1722213440367,2.97183,3303.3,3302.2,2.74284645]
[1722213440595,3.0,3303.2,3302.2,2.74284645]
[1722213440790,3.0,3303.2,3302.4,2.42246]
[1722213440969,0.55,3303.1,3302.3,0.51072465]
[1722213441298,0.55,3303.1,3302.4,0.07607488]
[1722213441299,2.42219,3302.8,3302.4,0.07607488]
[1722213441455,2.42219,3302.8,3302.1,2.3644]
[1722213441656,2.97199,3303.1,3302.1,2.3644]
[1722213441657,2.42216,3302.9,3302.2,0.07620586]
[1722213441889,2.42218,3302.8,3302.2,0.07620586]
[1722213442206,0.55,3302.7,3302.2,0.07620586]
[1722213442755,2.42233,3302.6,3302.2,0.07620586]
[1722213443157,2.42241,3302.5,3301.6,4.81955]
[1722213443358,2.42241,3302.5,3302.3,0.07626798]
[1722213443595,2.42248,3302.4,3301.6,2.3965]
[1722213443803,2.42233,3302.6,3301.6,2.3965]
[1722213443969,0.55,3302.5,3301.7,0.07685639]
[1722213444297,2.9724,3302.5,3301.6,4.81956]
[1722213444502,2.9724,3302.5,3301.7,0.07718906]
[1722213445008,0.55,3302.5,3301.7,2.50012906]
[1722213445202,2.97241,3302.5,3301.7,0.07718906]
[1722213445561,2.42258,3302.3,3301.7,0.07718906]
[1722213445767,3.214888,3302.2,3301.7,0.07718906]
[1722213446085,3.214888,3302.2,3301.8,0.07716418]
[1722213446287,3.0,3302.1,3301.8,0.07716418]
[1722213446490,0.55,3302.0,3301.9,0.07709867]
[1722213446912,0.55,3302.0,3301.3,2.42328]
[1722213447201,0.55,3302.0,3301.4,0.07747078]
[1722213447356,1.1714888,3302.0,3301.4,2.50068078]
[1722213447797,0.55,3302.0,3301.4,2.50068078]
[1722213448006,0.55,3302.1,3301.4,2.50068078]
[1722213449401,2.9727,3302.1,3301.4,0.07747078]
[1722213449805,2.9727,3302.1,3301.2,2.42335]
[1722213450099,2.9727,3302.1,3301.1,4.70707]
[1722213450100,0.55,3302.1,3301.1,4.70707]
[1722213450285,0.55,3302.1,3301.3,2.42327]
[1722213450491,0.55,3302.1,3301.2,0.0776212]
[1722213450492,0.55,3302.1,3301.4,2.50070014]
[1722213451408,0.242258,3302.2,3301.6,2.42301]
[1722213451591,0.242258,3302.2,3301.7,2.42299]
[1722213451798,0.242258,3302.2,3301.7,2.50027002]
[1722213452108,0.242258,3302.2,3301.7,2.45027002]
[1722213452291,5.42248,3302.4,3301.7,0.07728002]
[1722213452500,2.97255,3302.3,3301.5,3.73976263]
[1722213452697,0.55,3302.3,3301.6,0.07685256]
[1722213452881,2.97252,3302.4,3301.6,0.07685256]
[1722213453058,3.0,3302.3,3301.6,0.07685256]
[1722213453264,2.42267,3302.2,3301.6,0.07685256]
[1722213454502,3.0,3302.3,3301.6,0.07685256]
[1722213454730,2.42266,3302.2,3301.6,0.07685256]
[1722213456034,2.42284,3302.0,3301.6,0.07685256]
[1722213456211,2.42285,3301.9,3301.6,0.07685256]
[1722213457088,2.4227,3302.1,3301.6,0.07685256]
[1722213457298,2.42286,3301.9,3301.6,0.07685256]
[1722213457620,2.907416,3301.9,3301.6,0.07685256]
[1722213458138,2.907416,3301.9,3301.4,3.73976263]
[1722213458274,2.907416,3301.9,3301.7,0.07683346]
[1722213458479,2.907416,3301.9,3301.4,3.73976263]
[1722213458713,2.907416,3301.9,3301.5,0.0769645]
[1722213458917,0.2907416,3301.8,3301.5,0.0769645]
[1722213459638,0.484556,3301.9,3301.5,0.0769645]
[1722213459841,8.59785,3302.3,3301.5,0.0769645]
[1722213460038,2.97268,3302.2,3301.5,0.0769645]
[1722213461438,2.42272,3302.1,3301.5,0.0769645]
[1722213462837,2.42277,3302.0,3301.5,0.0769645]
[1722213463037,2.42285,3301.9,3301.5,0.0769645]
[1722213463744,2.42304,3301.7,3301.5,0.0769645]
[1722213464041,2.42304,3301.7,3301.3,7.28]
[1722213464539,2.42318,3301.5,3301.4,0.07700488]
[1722213464921,2.42325,3301.4,3301.2,3.73976263]
[1722213465146,0.485476,3301.5,3301.3,0.07718066]
[1722213465319,2.42289,3301.9,3301.2,3.73976263]
[1722213465534,5.4228,3302.0,3301.3,0.07727158]
[1722213465535,0.55,3301.8,3301.3,0.07727158]
[1722213465857,2.97296,3301.8,3301.2,3.73976263]
[1722213466022,3.0,3301.7,3301.4,0.07720605]
[1722213466221,0.597296,3301.6,3301.2,3.73976263]
[1722213466416,0.597296,3301.6,3301.5,0.07712892]
[1722213466630,0.597296,3301.6,3301.2,3.73976263]
[1722213466835,3.020356,3301.6,3301.5,0.07712892]
[1722213467122,3.020356,3301.6,3301.2,3.73976263]
[1722213467123,2.42326,3301.4,3301.2,3.73976263]
[1722213467327,4.71348,3301.3,3301.2,3.73976263]
[1722213467818,5.26348,3301.3,3301.2,3.73976263]
[1722213468832,2.42343,3301.2,3300.9,3.73976263]
[1722213469033,0.526363,3301.1,3300.9,3.73976263]
[1722213470932,0.55,3301.3,3300.9,3.73976263]
[1722213471131,0.6020356,3301.5,3300.9,3.73976263]
[1722213471332,0.597296,3301.6,3300.9,3.73976263]
[1722213471726,5.42296,3301.8,3300.9,3.73976263]
[1722213472117,2.42296,3301.8,3300.9,3.73976263]
[1722213472618,2.42296,3301.8,3300.8,7.28]
[1722213473463,2.42304,3301.7,3300.8,7.28]
[1722213473668,2.4231,3301.6,3300.8,7.28]
[1722213473822,0.484614,3301.5,3300.8,7.28]
[1722213475565,5.73984722,3301.7,3300.8,7.28]
[1722213475953,3.31684722,3301.7,3300.8,7.28]
[1722213476173,5.73983722,3301.7,3300.8,7.28]
[1722213477947,5.73983722,3301.7,3300.9,0.07764402]
[1722213478188,0.57398372,3301.6,3300.9,0.07764402]
[1722213478619,0.31684722,3301.7,3301.1,4.97038]
[1722213478755,2.42254,3302.4,3301.2,2.384]
[1722213479078,0.31680916,3302.1,3301.2,9.74143191]
[1722213479277,2.42263,3302.2,3301.2,9.74143191]
[1722213480277,2.73933683,3302.4,3301.2,9.74143191]
[1722213480593,0.50388368,3302.3,3301.4,2.42316]
[1722213480792,3.50388368,3302.3,3301.3,0.07736638]
[1722213480975,3.50388368,3302.3,3301.5,0.07723532]
[1722213481195,0.50388368,3302.3,3301.4,2.50051085]
[1722213481392,2.42241,3302.5,3301.4,2.50051085]
[1722213481393,2.42241,3302.5,3301.6,0.07706147]
[1722213481707,0.55,3302.4,3301.4,2.42321]
[1722213481912,2.97249,3302.4,3301.7,0.07699596]
[1722213482066,2.42226,3302.7,3301.7,2.42298]
[1722213482427,2.42213,3302.9,3301.8,4.84643657]
[1722213482610,0.242213,3302.8,3301.8,4.84643657]
[1722213482903,2.664393,3302.8,3301.8,4.84643657]
[1722213483072,2.42218,3302.8,3301.8,2.42352657]
[1722213483815,2.42204,3303.0,3302.0,2.42275]
[1722213484030,0.31679231,3303.1,3302.3,2.547]
[1722213484313,2.27003054,3303.9,3302.8,2.42211]
[1722213484468,3.635801,3304.1,3303.1,2.42196]
[1722213484469,0.26146703,3303.8,3303.1,2.42196]
[1722213484668,2.7379638,3304.2,3303.1,2.42196]
[1722213484920,2.42123,3304.1,3303.2,0.07592277]
[1722213485208,2.42123,3304.1,3303.0,2.42203]
[1722213485430,0.242123,3304.0,3303.3,0.07584572]
[1722213485584,2.3292,3304.5,3303.5,2.42164]
[1722213485784,2.42087,3304.6,3303.5,2.42164]
[1722213486105,2.4208,3304.7,3303.6,0.07557012]
[1722213486328,4.89149,3304.9,3303.7,2.42151]
[1722213486485,3.1572134,3304.8,3303.7,2.42151]
[1722213486827,3.1572134,3304.8,3303.8,0.07531362]
[1722213487024,2.42103,3304.4,3303.5,2.547]
[1722213487233,2.42103,3304.4,3303.4,9.7325]
[1722213487234,2.42122,3304.2,3303.9,0.07524819]
[1722213487457,2.4213,3304.0,3303.4,7.28]
[1722213487637,0.297122,3304.1,3303.4,7.28]
[1722213487833,2.718362,3304.1,3303.4,7.28]
[1722213488288,0.297122,3304.1,3303.4,7.28]
[1722213488489,2.718382,3304.1,3303.4,7.28]
[1722213488805,2.9353152,3304.0,3303.4,7.28]
[1722213489195,0.5139552,3304.0,3303.4,7.28]
[1722213489396,2.9352652,3304.0,3303.4,7.28]
[1722213489690,2.42139,3303.9,3303.4,7.28]
[1722213489893,2.42123,3304.1,3303.4,7.28]
[1722213490662,2.42146,3303.8,3303.4,7.28]
[1722213490789,0.55,3304.3,3303.3,3.73976263]
[1722213490790,2.4213,3304.0,3303.3,3.73976263]
[1722213490995,2.66351,3303.9,3303.3,3.73976263]
[1722213491407,0.24213,3303.9,3303.3,3.73976263]
[1722213491592,2.97148,3303.8,3303.3,3.73976263]
[1722213491790,2.42165,3303.6,3303.3,3.73976263]
[1722213492818,2.42165,3303.6,3303.4,0.07509977]
[1722213493125,0.242165,3303.5,3303.4,0.07509977]
[1722213493355,5.085505,3303.5,3303.4,0.07509977]
[1722213493747,2.663835,3303.5,3303.4,0.07509977]
[1722213495499,0.242165,3303.5,3303.4,0.07509977]
[1722213495702,2.42153,3303.7,3303.4,0.07509977]
[1722213495865,0.55,3303.8,3303.4,0.07509977]
[1722213496405,2.42153,3303.7,3303.4,0.07509977]
[1722213496710,2.42153,3303.7,3303.1,3.73976263]
[1722213497065,0.55,3303.8,3303.2,0.0752616]
[1722213497266,2.97152,3303.8,3303.2,0.0752616]
[1722213497481,0.321365,3303.7,3303.2,0.0752616]
[1722213497940,0.321365,3303.7,3303.1,3.73976263]
[1722213498093,0.321365,3303.7,3303.3,0.07277809]
[1722213498530,2.742935,3303.7,3303.1,3.73976263]
[1722213498731,0.321365,3303.7,3303.4,0.07271264]
[1722213498929,0.3292835,3303.6,3303.1,3.73976263]
[1722213499089,2.42124,3304.1,3303.5,0.07265681]
[1722213499290,2.42124,3304.1,3303.1,6.28676263]
[1722213499796,2.42124,3304.1,3303.2,0.07284931]
[1722213500019,2.42124,3304.1,3303.3,2.3955]
[1722213500221,5.42117,3304.2,3303.3,2.46828386]
[1722213500452,0.3,3304.1,3303.3,2.46828386]
[1722213500814,2.72124,3304.1,3303.3,2.46828386]
[1722213501015,5.42131,3304.0,3303.3,2.46828386]
[1722213501215,2.42131,3304.0,3303.3,2.46828386]
[1722213501546,0.272131,3303.9,3303.3,2.46828386]
[1722213501948,0.3,3304.1,3303.3,2.46828386]
[1722213502459,0.3,3304.1,3303.5,2.547]
[1722213502647,2.42096,3304.5,3303.5,4.96866]
[1722213502849,2.42096,3304.5,3303.6,0.07256827]
[1722213504054,3.0860634,3304.8,3303.6,0.07256827]
[1722213504055,2.4211,3304.3,3303.6,0.07256827]
[1722213504359,2.42115,3304.3,3303.6,0.07256827]
[1722213504559,2.42121,3304.2,3303.6,0.07256827]
[1722213504761,0.484236,3304.1,3303.6,0.07256827]
[1722213505125,2.42101,3304.4,3303.6,0.07256827]
[1722213505527,2.42091,3304.6,3303.6,0.07256827]
[1722213505760,0.55,3304.5,3303.6,0.07256827]
[1722213506075,2.97096,3304.5,3303.6,0.07256827]
[1722213507172,3.0,3304.7,3303.9,2.547]
[1722213507337,0.7364634,3304.8,3304.0,2.2649]
[1722213507536,2.4205,3305.1,3304.0,2.33710841]
[1722213507723,2.4205,3305.1,3304.0,4.75836841]
[1722213507922,2.4205,3305.1,3304.1,2.42123]
[1722213508168,0.14536,3305.5,3304.2,0.07191977]
[1722213508376,0.14536,3305.5,3304.3,2.547]
[1722213508377,2.42037,3305.3,3304.3,2.547]
[1722213508577,2.56557,3305.5,3304.3,2.547]
[1722213508578,2.42042,3305.2,3304.3,2.547]
[1722213508873,2.42042,3305.2,3304.4,0.07165814]
[1722213509228,2.4205,3305.1,3304.4,0.07165814]
[1722213509428,0.24205,3305.0,3304.4,0.07165814]
[1722213509741,2.66262,3305.0,3304.4,0.07165814]
[1722213510529,0.24205,3305.0,3304.4,0.07165814]
[1722213510967,2.66262,3305.0,3304.4,0.07165814]
[1722213511826,2.42066,3304.9,3304.4,0.07165814]
[1722213512127,0.508328,3304.8,3304.4,0.07165814]
[1722213512583,0.508328,3304.8,3304.5,0.07159274]
[1722213512792,2.42073,3304.8,3304.5,0.07159274]
[1722213513007,2.42088,3304.6,3304.2,7.28]
[1722213513210,2.42094,3304.5,3304.2,7.28]
[1722213513419,2.663034,3304.5,3304.2,7.28]
[1722213514609,0.242094,3304.5,3304.2,7.28]
[1722213514770,2.663094,3304.5,3304.2,7.28]
[1722213515760,0.242094,3304.5,3304.2,7.28]
[1722213516089,2.4208,3304.7,3304.2,7.28]
[1722213517281,2.42095,3304.5,3304.1,3.73976263]
[1722213517908,0.31668709,3304.6,3304.1,3.73976263]
[1722213518064,2.73755709,3304.6,3304.1,3.73976263]
[1722213519176,0.31668709,3304.6,3304.1,3.73976263]
[1722213519578,2.42095,3304.5,3304.1,3.73976263]
[1722213519964,0.31668709,3304.6,3304.1,3.73976263]
[1722213520176,2.42096,3304.5,3304.1,3.73976263]
[1722213520370,0.31668709,3304.6,3304.1,3.73976263]
[1722213522613,2.73754709,3304.6,3304.1,3.73976263]
[1722213523000,0.31668709,3304.6,3304.2,0.07178897]
[1722213523377,0.31668709,3304.6,3304.3,0.07155045]
[1722213523777,0.5904358,3304.6,3304.0,6.00466263]
[1722213524187,0.5904358,3304.6,3304.1,0.07168129]
[1722213524954,0.5904358,3304.6,3304.3,2.547]
[1722213524955,0.31668709,3304.6,3304.3,2.547]
[1722213525241,0.31668709,3304.6,3304.4,2.3906]
[1722213525442,0.31668709,3304.6,3304.5,2.42094]
[1722213525804,0.31668709,3304.6,3304.5,2.49233079]
[1722213526025,0.31668709,3304.6,3304.5,3.47742787]
[1722213527040,0.31668709,3304.6,3304.5,0.07139079]
[1722213530093,2.4204,3305.3,3304.5,0.07139079]